bitfinex/quotes_ETHUSD_20250930
["timestamp","ask_amount","ask_price","bid_price","bid_amount"]
[1759242709282,2.4,4137.9,4137.4,0.1208]
[1759242709453,2.41693222,4137.5,4137.4,0.1208]
[1759242709786,2.41691842,4137.5,4137.4,0.1208]
[1759242711475,2.41690329,4137.6,4137.4,0.1208]
[1759242711647,2.41691842,4137.5,4137.4,0.1208]
[1759242711848,2.4,4137.9,4137.4,0.1208]
[1759242712273,2.41689049,4137.6,4137.4,0.1208]
[1759242712477,2.41691842,4137.5,4137.4,0.1208]
[1759242712986,2.4,4138.9,4137.4,0.1208]
[1759242713152,2.41687751,4137.6,4137.4,0.1208]
[1759242713350,2.4,4138.1,4137.4,0.1208]
[1759242713649,2.41674253,4137.9,4137.8,0.1208]
[1759242714474,2.41668479,4137.9,4137.8,0.1208]
[1759242714845,4.8164921,4138.3,4137.8,0.1208]
[1759242715044,2.4,4138.2,4137.8,0.1208]
[1759242715250,2.41668212,4138.0,4137.8,0.1208]
[1759242715471,2.5218,4138.6,4138.0,0.1208]
[1759242715676,2.41656799,4138.1,4138.0,0.1208]
[1759242716053,2.41697651,4137.5,4137.1,0.002]
[1759242716372,2.4169061,4137.6,4137.4,0.1208]
[1759242716575,2.41691842,4137.5,4137.4,0.1208]
[1759242716883,2.4,4137.8,4137.1,0.002]
[1759242717182,2.4,4137.6,4137.1,0.1228]
[1759242717358,2.41691842,4137.5,4137.1,0.1228]
[1759242717673,0.1208,4137.7,4137.1,0.1228]
[1759242717870,2.4,4137.5,4137.1,0.1228]
[1759242718064,2.41709368,4137.2,4137.1,0.1228]
[1759242719455,2.41709368,4137.2,4137.1,0.002]
[1759242719694,2.53789368,4137.2,4137.1,0.002]
[1759242720293,17.30845713,4138.3,4137.1,0.002]
[1759242720595,17.30845713,4138.3,4137.1,0.1228]
[1759242720596,0.1208,4137.6,4137.1,0.1228]
[1759242721420,2.53767535,4137.6,4137.1,0.002]
[1759242721624,0.1208,4137.2,4137.1,0.002]
[1759242721808,2.53789368,4137.2,4137.1,0.002]
[1759242722110,4.93789368,4137.2,4137.1,0.002]
[1759242724583,4.81709368,4137.2,4137.1,0.002]
[1759242724783,2.4,4137.2,4137.1,0.002]
[1759242725021,2.41697812,4137.4,4137.1,0.002]
[1759242725183,2.5208,4137.6,4137.1,0.002]
[1759242725379,2.41709368,4137.2,4137.1,0.002]
[1759242725894,2.53789368,4137.2,4137.1,0.002]
[1759242728635,4.93789368,4137.2,4137.1,0.002]
[1759242730732,7.85289368,4137.2,4137.1,0.002]
[1759242731054,9.0044056,4137.2,4137.1,0.002]
[1759242731513,2.41738583,4136.7,4136.6,1e-08]
[1759242731712,7.73238583,4136.7,4136.6,1e-08]
[1759242732424,4.81738583,4136.7,4136.6,1e-08]
[1759242733532,5.33199731,4137.4,4136.6,1e-08]
[1759242733533,2.915,4137.4,4136.6,1e-08]
[1759242733714,2.4,4137.3,4136.6,1e-08]
[1759242733913,0.001,4138.6,4136.6,1e-08]
[1759242734230,2.41690391,4137.6,4136.8,2.41728682]
[1759242734401,0.001,4138.6,4137.0,2.41721053]
[1759242734604,0.001,4138.6,4137.1,0.02417152]
[1759242734825,2.4168697,4137.6,4136.8,2.41731808]
[1759242735029,2.4168697,4137.6,4136.9,2.41724593]
[1759242735231,2.4168697,4137.6,4136.6,1e-08]
[1759242735232,2.41674618,4137.8,4136.8,2.41731997]
[1759242735431,2.41674618,4137.8,4136.9,0.48347099]
[1759242735740,2.41689512,4137.6,4136.9,0.48347099]
[1759242736067,2.41699505,4137.4,4136.9,0.48347099]
[1759242736264,2.41650959,4138.2,4136.8,2.41732294]
[1759242736265,2.4,4138.1,4136.8,2.41732294]
[1759242736557,2.41716171,4137.1,4136.6,1e-08]
[1759242736763,2.41690986,4137.6,4136.6,1e-08]
[1759242736927,2.41733085,4136.8,4136.6,1e-08]
[1759242737127,2.41693067,4137.5,4136.6,1e-08]
[1759242737324,2.915,4138.0,4136.6,1e-08]
[1759242737736,2.4,4137.9,4136.6,1e-08]
[1759242737956,2.4,4137.5,4136.6,1e-08]
[1759242738156,2.41697684,4137.4,4136.6,1e-08]
[1759242738358,2.41738583,4136.7,4136.6,1e-08]
[1759242741350,2.41737677,4136.8,4136.6,1e-08]
[1759242741552,0.1208,4137.0,4136.6,1e-08]
[1759242741751,2.41738583,4136.7,4136.6,1e-08]
[1759242741957,4.93818583,4136.7,4136.6,1e-08]
[1759242742890,6.08969775,4136.7,4136.6,1e-08]
[1759242743644,2.41761961,4136.3,4136.2,0.002]
[1759242743849,2.41761961,4136.3,4136.1,0.002]
[1759242743850,4.81767806,4136.2,4136.1,1e-08]
[1759242747760,5.96918998,4136.2,4136.1,1e-08]
[1759242748153,7.73167806,4136.2,4136.1,1e-08]
[1759242750087,8.52367806,4136.2,4136.1,1e-08]
[1759242750399,8.88318998,4136.2,4136.1,1e-08]
[1759242751180,7.73167806,4136.2,4136.1,1e-08]
[1759242753464,8.88318998,4136.2,4136.1,1e-08]
[1759242755506,4.81773651,4136.1,4135.6,1e-08]
[1759242755798,4.81797035,4135.7,4135.6,1e-08]
[1759242755991,7.73197035,4135.7,4135.6,1e-08]
[1759242756190,4.81797035,4135.7,4135.6,1e-08]
[1759242756893,4.93856609,4135.7,4135.6,1e-08]
[1759242758299,5.05936609,4135.7,4135.6,1e-08]
[1759242758804,5.85136609,4135.7,4135.6,1e-08]
[1759242758990,6.21087801,4135.7,4135.6,1e-08]
[1759242759771,2.41820424,4135.3,4135.2,0.002]
[1759242760005,22.81582675,4135.3,4135.2,0.002]
[1759242762085,4.93900424,4135.3,4135.2,0.002]
[1759242762284,4.81820424,4135.3,4135.2,0.002]
[1759242762608,0.12059574,4135.7,4135.2,0.002]
[1759242762907,2.41820424,4135.3,4135.2,0.002]
[1759242764181,2.41809836,4135.5,4135.2,0.002]
[1759242764381,0.001,4136.7,4135.2,0.002]
[1759242764596,2.41804217,4135.6,4135.2,0.1228]
[1759242764798,2.41791189,4135.8,4135.2,0.1228]
[1759242765008,2.53863008,4136.0,4135.2,0.1228]
[1759242765200,2.41795157,4135.8,4135.5,0.1208]
[1759242765399,2.41785512,4135.9,4135.5,0.1208]
[1759242765597,2.41785512,4135.9,4135.5,0.37732017]
[1759242765798,0.001,4135.7,4135.5,0.37732017]
[1759242766005,2.41802882,4135.6,4135.5,0.1208]
[1759242766597,0.001,4135.7,4135.5,0.1208]
[1759242766921,0.001,4135.7,4135.2,0.002]
[1759242766922,0.001,4135.7,4135.6,0.14498028]
[1759242767125,0.001,4135.7,4135.6,0.1208]
[1759242767292,0.001,4135.7,4135.6,2.53882882]
[1759242767491,0.001,4135.7,4135.6,3.32582379]
[1759242767820,0.001,4135.7,4135.6,4.60787104]
[1759242768687,0.001,4135.7,4135.6,4.63205132]
[1759242769487,0.001,4135.7,4135.6,4.14200407]
[1759242769693,0.001,4135.7,4135.6,4.11782379]
[1759242771024,0.001,4135.7,4135.6,0.90779497]
[1759242771190,0.001,4135.7,4135.6,4.17282882]
[1759242771707,0.001,4135.7,4135.6,4.96482882]
[1759242771904,0.001,4135.7,4135.6,2.5468]
[1759242772210,0.001,4135.7,4135.6,0.1208]
[1759242772447,0.001,4135.7,4135.6,5.45082882]
[1759242772614,0.001,4135.7,4135.6,3.81969612]
[1759242773819,0.001,4135.7,4135.6,2.911]
[1759242774344,2.41897035,4135.7,4135.6,2.911]
[1759242774548,0.001,4135.7,4135.6,2.911]
[1759242777040,2.41897035,4135.7,4135.6,2.911]
[1759242777633,0.001,4135.7,4135.6,2.911]
[1759242778047,2.41897035,4135.7,4135.6,2.911]
[1759242778430,0.001,4135.7,4135.6,2.911]
[1759242778727,0.001,4135.7,4135.6,3.2021]
[1759242779239,0.001,4135.7,4135.6,5.62012882]
[1759242780845,0.001,4135.7,4135.6,6.41212882]
[1759242782276,0.001,4135.7,4135.6,3.50112882]
[1759242782574,0.001,4135.7,4135.6,6.41112882]
[1759242783153,0.001,4135.7,4135.6,3.50112882]
[1759242783370,0.001,4135.7,4135.6,6.41112882]
[1759242783848,0.001,4135.7,4135.6,6.53392882]
[1759242784551,0.001,4135.7,4135.6,3.62392882]
[1759242785086,0.001,4135.7,4135.6,2.83192882]
[1759242785275,0.001,4135.7,4135.6,5.74092882]
[1759242785780,0.001,4135.7,4135.6,6.53292882]
[1759242786193,0.001,4135.7,4135.6,3.62392882]
[1759242786481,0.001,4135.7,4135.6,6.53292882]
[1759242787490,0.001,4135.7,4135.6,0.1228]
[1759242787695,0.001,4135.7,4135.6,5.44982882]
[1759242787892,0.001,4135.7,4135.6,3.0318]
[1759242788290,0.001,4135.7,4135.6,0.1228]
[1759242788493,0.001,4135.7,4135.6,3.0318]
[1759242790119,0.001,4135.7,4135.6,0.1228]
[1759242790288,2.41897035,4135.7,4135.6,0.1228]
[1759242790622,2.41897035,4135.7,4135.6,2.91]
[1759242791272,0.001,4135.7,4135.6,2.91]
[1759242791605,2.41897035,4135.7,4135.6,2.91]
[1759242791808,0.001,4135.7,4135.6,2.91]
[1759242792008,2.41897035,4135.7,4135.6,2.91]
[1759242792532,0.001,4135.7,4135.6,2.91]
[1759242792676,0.001,4135.7,4135.6,3.21308]
[1759242793008,0.001,4135.7,4135.6,5.6552891]
[1759242793311,0.001,4135.7,4135.6,5.63110882]
[1759242793511,0.001,4135.7,4135.6,3.21308]
[1759242793719,0.001,4135.7,4135.6,5.63110882]
[1759242795615,0.001,4135.7,4135.6,3.21308]
[1759242795815,0.001,4135.7,4135.6,0.002]
[1759242796134,2.41897035,4135.7,4135.6,0.002]
[1759242796319,2.41897035,4135.7,4135.6,2.909]
[1759242797132,2.41897035,4135.7,4135.6,0.002]
[1759242797516,2.41897035,4135.7,4135.6,2.909]
[1759242797931,0.001,4135.7,4135.6,2.909]
[1759242798434,2.41897035,4135.7,4135.6,0.002]
[1759242804220,0.001,4135.7,4135.6,0.002]
[1759242804425,2.41897035,4135.7,4135.6,0.002]
[1759242806430,2.41826272,4135.2,4135.1,0.002]
[1759242807039,4.93906272,4135.2,4135.1,0.002]
[1759242807869,2.41849666,4134.8,4134.7,1e-08]
[1759242808168,7.84529666,4134.8,4134.7,1e-08]
[1759242809254,8.63729666,4134.8,4134.7,1e-08]
[1759242809557,0.792,4134.6,4133.1,0.1208]
[1759242809756,2.41972265,4132.8,4132.6,0.1208]
[1759242809942,2.4,4133.8,4132.6,0.1208]
[1759242809943,0.1208,4133.2,4132.6,0.1208]
[1759242810186,2.4,4133.1,4132.6,0.1208]
[1759242810372,2.41995706,4132.4,4131.6,2.42236895]
[1759242810571,0.1208,4132.9,4131.6,0.002]
[1759242810781,2.4,4132.6,4131.6,0.002]
[1759242811092,2.42001839,4132.2,4131.7,0.1208]
[1759242811303,2.5208,4132.3,4131.7,0.1208]
[1759242811304,0.1208,4132.3,4131.7,0.1208]
[1759242811463,0.1208,4132.3,4131.6,0.002]
[1759242811464,2.4,4133.0,4131.6,2.42235383]
[1759242811789,4.94059312,4132.6,4131.6,0.002]
[1759242811988,0.1208,4132.3,4131.7,0.1208]
[1759242812188,0.1208,4132.3,4131.6,0.002]
[1759242812189,4.82001839,4132.2,4131.6,0.002]
[1759242812793,2.4,4132.2,4131.6,0.002]
[1759242813093,2.41996332,4132.3,4131.6,0.002]
[1759242813295,2.41990126,4132.4,4131.6,0.002]
[1759242813499,4.82001839,4132.2,4131.8,0.1208]
[1759242814476,2.4,4132.2,4131.8,0.1208]
[1759242814680,2.42001839,4132.2,4131.8,0.1208]
[1759242815201,2.42001839,4132.2,4131.6,0.002]
[1759242815202,4.94081839,4132.2,4131.6,0.002]
[1759242815698,3.21231125,4131.7,4131.6,0.002]
[1759242816001,25.91030831,4131.7,4131.6,0.002]
[1759242816189,4.82036983,4131.6,4131.5,1e-08]
[1759242817614,2.42099681,4130.6,4128.7,0.47499896]
[1759242817822,2.4,4130.3,4129.1,0.1208]
[1759242817982,22.59919387,4130.6,4129.1,0.1208]
[1759242817983,2.42177661,4129.2,4129.1,0.1208]
[1759242818188,2.42177661,4129.2,4126.4,2.42341755]
[1759242818189,2.4,4129.9,4128.7,0.1208]
[1759242818399,4.94275257,4128.9,4128.3,0.1208]
[1759242819601,4.82195257,4128.9,4125.8,2.42375422]
[1759242819799,4.82195257,4128.9,4127.0,0.487816]
[1759242820298,2.4220699,4128.7,4126.0,2.906]
[1759242820496,2.4,4128.5,4127.3,4.63352273]
[1759242820697,4.82216656,4128.6,4127.3,4.21229339]
[1759242821020,2.4227084,4127.7,4127.3,4.21229339]
[1759242821242,2.4,4128.6,4125.5,0.72852579]
[1759242821422,2.4,4128.6,4125.7,2.4238311]
[1759242821730,2.37730595,4129.1,4125.7,2.4]
[1759242821888,2.42227226,4128.4,4127.2,2.42290204]
[1759242822087,2.42213796,4128.6,4127.2,2.42289905]
[1759242822329,2.4,4128.9,4126.5,0.792]
[1759242822497,2.42235662,4128.3,4126.6,0.745]
[1759242822701,2.42213378,4128.6,4126.9,0.792]
[1759242823021,2.4,4128.9,4127.0,0.4007185]
[1759242823323,2.42229461,4128.4,4127.3,2.42284159]
[1759242823517,2.42231329,4128.3,4127.1,2.42299411]
[1759242823723,2.42235962,4128.3,4127.2,2.42289935]
[1759242823902,2.42235962,4128.3,4127.3,2.42284518]
[1759242824099,4.82195339,4128.9,4127.5,2.42273112]
[1759242824321,2.4,4128.9,4127.4,2.42278752]
[1759242824522,2.4,4128.9,4127.9,2.42252952]
[1759242824820,17.27219706,4130.2,4127.5,0.792]
[1759242825023,0.12040255,4129.5,4127.6,0.02422715]
[1759242825243,2.42162634,4129.5,4128.4,2.42220189]
[1759242825437,0.97889548,4131.9,4127.7,0.792]
[1759242825643,0.97889548,4131.9,4127.1,0.4866877]
[1759242825644,2.42083857,4130.8,4128.0,0.792]
[1759242825827,2.42186532,4129.1,4128.1,0.2897]
[1759242826008,2.42195814,4128.9,4128.2,2.907]
[1759242826207,2.42188666,4129.1,4127.8,2.907]
[1759242826545,4.82148905,4129.7,4127.2,0.792]
[1759242826840,2.42175831,4129.3,4128.2,2.42235986]
[1759242827044,2.42175831,4129.3,4128.3,2.907]
[1759242827219,2.4,4130.1,4128.4,0.2907]
[1759242827423,2.42171488,4129.4,4128.5,2.42217655]
[1759242827611,4.82161924,4129.5,4128.5,2.907]
[1759242827809,2.907,4130.2,4127.3,2.42289147]
[1759242828137,2.42177379,4129.3,4128.5,2.42218669]
[1759242828337,2.4,4130.1,4128.6,2.42212515]
[1759242828538,2.4,4130.1,4128.5,2.907]
[1759242828719,2.4217277,4129.3,4128.5,5.32918046]
[1759242828925,2.42161447,4129.5,4128.5,2.907]
[1759242829128,4.82125447,4130.1,4128.5,2.907]
[1759242829332,2.4213075,4130.0,4128.9,2.42194169]
[1759242829712,0.1208,4129.6,4129.1,0.1208]
[1759242829918,2.4,4130.5,4129.1,0.1208]
[1759242830131,0.1208,4130.0,4129.4,0.1208]
[1759242830315,2.907,4131.0,4129.6,0.1208]
[1759242830316,0.1208,4130.2,4129.6,0.1208]
[1759242830648,2.5208,4130.2,4129.6,0.1208]
[1759242830845,0.1208,4130.2,4129.6,0.1208]
[1759242831643,0.1208,4129.7,4129.1,0.1208]
[1759242831810,4.82158425,4129.6,4129.1,0.1208]
[1759242832017,2.42155951,4129.6,4129.1,0.1208]
[1759242832248,4.82130839,4130.0,4129.1,0.1208]
[1759242832456,0.1208,4129.9,4129.1,2.54260086]
[1759242832666,2.4,4129.8,4129.1,0.1208]
[1759242832867,2.4,4130.4,4129.2,0.02421776]
[1759242833071,0.1208,4130.2,4129.6,0.1208]
[1759242833277,2.4,4130.1,4129.6,0.1208]
[1759242833480,2.42089541,4130.8,4129.6,2.54233516]
[1759242833642,0.12153763,4131.6,4129.7,0.02421483]
[1759242833843,0.1208,4130.9,4130.3,0.1208]
[1759242834153,2.4,4130.8,4130.3,0.1208]
[1759242834377,2.42095579,4130.6,4130.3,0.1208]
[1759242834583,2.42107301,4130.4,4130.3,0.1208]
[1759242834778,0.1208,4130.9,4130.3,0.1208]
[1759242834961,2.4,4131.0,4130.3,0.1208]
[1759242834962,0.1208,4131.0,4130.3,0.1208]
[1759242835275,2.54153269,4131.0,4130.3,2.54191859]
[1759242835445,0.1208,4131.0,4130.3,0.1208]
[1759242835874,2.42100131,4130.6,4130.3,0.1208]
[1759242836171,4.82078024,4130.9,4130.3,0.1208]
[1759242836390,2.4,4130.9,4130.3,0.1208]
[1759242836569,2.4,4130.8,4130.3,0.1208]
[1759242836872,2.42089476,4130.8,4130.3,0.1208]
[1759242837171,2.42079483,4130.9,4130.3,0.1208]
[1759242837373,2.42091272,4130.7,4130.3,0.1208]
[1759242837550,2.4209656,4130.6,4130.3,0.1208]
[1759242837754,2.42093242,4130.7,4130.3,0.1208]
[1759242837955,2.42097797,4130.6,4130.3,0.1208]
[1759242838156,0.1208,4131.0,4130.3,0.1208]
[1759242838376,2.42064578,4131.2,4130.5,0.1208]
[1759242838575,2.42091016,4130.7,4130.5,3.0278]
[1759242838764,2.42095579,4130.6,4130.5,0.1208]
[1759242838964,2.401,4130.7,4127.3,2.4248729]
[1759242839169,2.4210144,4130.5,4128.9,2.42189876]
[1759242839490,2.4,4130.3,4127.5,2.42273868]
[1759242839651,2.907,4130.4,4127.4,0.24248729]
[1759242839652,2.42186241,4129.1,4127.6,2.3]
[1759242839849,2.42179478,4129.2,4128.4,2.42223354]
[1759242840045,2.4,4129.8,4128.5,2.906]
[1759242840256,3.192,4130.3,4127.4,0.24248729]
[1759242840456,2.4,4129.8,4127.3,0.002]
[1759242840669,2.4222487,4128.4,4127.3,0.002]
[1759242840874,2.42241502,4128.2,4127.4,2.26]
[1759242841359,2.42243857,4128.1,4127.5,2.906]
[1759242841580,2.42243857,4128.1,4127.3,0.002]
[1759242841782,2.42224857,4128.4,4127.3,5.14588306]
[1759242842002,2.4,4129.0,4127.3,2.723]
[1759242842175,2.4,4129.2,4127.3,2.9953]
[1759242842496,2.4,4129.3,4127.5,2.42277407]
[1759242842680,2.42187947,4129.1,4127.6,0.02422715]
[1759242842884,2.42184889,4129.1,4128.2,2.42230623]
[1759242843086,2.4,4129.9,4128.3,2.907]
[1759242843087,2.42190622,4129.0,4128.3,2.907]
[1759242843469,2.4,4129.9,4128.3,2.907]
[1759242843674,2.42095579,4130.6,4128.4,2.4222459]
[1759242843910,2.4,4130.4,4128.8,2.42201045]
[1759242844202,2.42151897,4129.7,4128.9,2.42194561]
[1759242844496,2.42148541,4129.7,4128.3,3.1977]
[1759242844690,2.42153036,4129.7,4128.9,2.42195224]
[1759242844889,2.42153036,4129.7,4129.0,2.42189297]
[1759242845197,0.001,4130.7,4129.1,0.02421835]
[1759242845403,2.42095579,4130.6,4129.2,2.907]
[1759242845570,2.42154336,4129.6,4129.2,2.907]
[1759242845773,2.42139096,4129.9,4129.2,2.907]
[1759242845972,2.4214429,4129.8,4129.2,2.907]
[1759242846172,2.42153063,4129.7,4129.2,2.907]
[1759242846375,2.42143995,4129.8,4129.2,2.907]
[1759242846772,0.001,4130.7,4129.2,2.907]
[1759242847100,2.42119541,4130.2,4129.5,2.4215833]
[1759242847267,2.42112612,4130.4,4129.6,2.42154184]
[1759242847590,0.001,4130.7,4129.7,0.02421483]
[1759242847827,2.42103284,4130.5,4129.8,2.42141741]
[1759242847991,0.001,4130.7,4129.2,2.907]
[1759242848321,0.001,4130.7,4129.9,2.42136188]
[1759242848322,2.42096049,4130.6,4129.9,2.42136188]
[1759242848521,0.001,4130.7,4130.0,2.907]
[1759242848916,2.42190106,4130.7,4130.3,0.1208]
[1759242849221,0.001,4130.7,4130.3,0.1208]
[1759242849399,2.42118441,4130.3,4129.9,2.863]
[1759242849606,0.1208,4130.6,4130.0,0.1208]
[1759242849927,2.4,4130.5,4130.0,0.1208]
[1759242850097,2.4211349,4130.3,4130.0,0.1208]
[1759242850298,2.42124888,4130.1,4130.0,0.1208]
[1759242850493,2.4215365,4129.7,4128.2,2.4223214]
[1759242850725,2.4215365,4129.7,4129.4,0.1208]
[1759242850924,2.42160067,4129.5,4128.8,2.906]
[1759242851131,2.42173441,4129.3,4129.2,0.1208]
[1759242851468,2.42198904,4128.9,4128.0,0.4894935]
[1759242851604,2.42154888,4129.6,4127.4,2.42283277]
[1759242851605,2.42201425,4128.8,4128.6,0.1208]
[1759242851790,2.42196701,4128.9,4128.6,0.1208]
[1759242851995,0.1208,4129.1,4128.6,0.1208]
[1759242852235,2.4,4129.0,4126.5,2.42331062]
[1759242852414,2.42216804,4128.6,4128.3,0.1208]
[1759242852620,2.4220699,4128.7,4128.3,0.1208]
[1759242852827,2.906,4129.1,4127.3,0.002]
[1759242853000,0.1208,4128.5,4127.9,0.1208]
[1759242853325,2.4,4128.4,4127.9,0.1208]
[1759242853627,2.42240756,4128.2,4127.9,0.1208]
[1759242853955,2.42227251,4128.4,4127.9,0.1208]
[1759242854100,4.82225656,4128.4,4127.9,0.1208]
[1759242854428,2.4,4128.7,4128.2,0.1208]
[1759242854593,2.42214122,4128.6,4128.2,0.1208]
[1759242854796,2.42230458,4128.3,4128.2,0.1208]
[1759242855027,0.1208,4128.5,4128.0,0.1208]
[1759242855262,5.306,4129.0,4127.3,0.002]
[1759242855437,0.1208,4128.0,4127.4,0.1208]
[1759242855735,2.4,4128.7,4127.6,0.1208]
[1759242855893,2.4,4128.9,4127.7,0.02422656]
[1759242856094,0.1208,4128.6,4128.1,0.1208]
[1759242856330,2.42222891,4128.5,4128.1,0.1208]
[1759242856710,0.1208,4128.6,4128.1,0.1208]
[1759242857100,2.42178492,4129.2,4128.2,2.93022363]
[1759242857439,2.42242925,4129.8,4128.2,2.93022363]
[1759242857652,0.1208,4129.4,4128.8,0.1208]
[1759242857930,0.1218,4129.8,4129.2,0.1208]
[1759242858135,2.42165504,4129.5,4129.2,0.1208]
[1759242858333,2.42185442,4129.1,4128.3,2.42226312]
[1759242858504,2.5208,4129.3,4128.7,0.1208]
[1759242858701,0.1208,4129.3,4128.7,0.1208]
[1759242858937,2.42166419,4129.4,4129.0,0.1208]
[1759242859124,0.1208,4129.5,4129.0,0.1208]
[1759242859513,2.42183526,4129.1,4129.0,0.1208]
[1759242859902,2.4,4129.6,4128.5,2.906]
[1759242860111,4.82188931,4129.1,4128.6,0.1208]
[1759242860304,2.4,4129.0,4128.6,0.1208]
[1759242860506,2.42189392,4129.0,4128.6,0.1208]
[1759242860708,2.42247022,4129.8,4127.3,0.002]
[1759242860709,2.4,4129.4,4127.3,0.002]
[1759242861015,2.906,4129.5,4127.3,0.002]
[1759242861016,0.792,4129.0,4127.3,0.002]
[1759242861217,2.4,4128.8,4127.3,0.002]
[1759242861421,2.42283277,4127.4,4127.3,0.002]
[1759242861625,2.422788,4127.5,4127.3,0.002]
[1759242861947,2.42272295,4127.6,4127.3,0.002]
[1759242862255,2.4,4128.3,4127.3,0.002]
[1759242862256,2.42283277,4127.4,4127.3,0.002]
[1759242862409,2.4,4128.1,4127.3,0.002]
[1759242862724,2.4,4128.3,4127.3,0.002]
[1759242862924,2.42267144,4127.7,4127.3,0.002]
[1759242863116,2.42272592,4127.6,4127.3,0.002]
[1759242863316,2.42266606,4127.7,4127.3,0.002]
[1759242863509,2.42267502,4127.7,4127.3,0.002]
[1759242863722,2.42265463,4127.8,4127.3,0.002]
[1759242863937,2.42261165,4127.8,4127.3,0.002]
[1759242864155,2.4,4128.3,4127.3,0.002]
[1759242864315,2.42283277,4127.4,4127.3,0.002]
[1759242865015,2.4,4127.6,4127.3,0.002]
[1759242865217,2.4,4127.7,4127.3,0.002]
[1759242865438,2.42283277,4127.4,4127.3,0.002]
[1759242867768,2.51901749,4127.8,4127.3,0.002]
[1759242868059,2.42248321,4128.0,4127.3,0.002]
[1759242868261,2.42252608,4128.0,4127.3,0.002]
[1759242868460,2.42251212,4128.0,4127.3,0.002]
[1759242868668,2.4,4128.1,4127.3,2.42488899]
[1759242868845,2.42256375,4127.9,4127.3,0.002]
[1759242869030,2.4,4128.7,4127.3,2.42487957]
[1759242869230,2.906,4128.8,4127.3,0.002]
[1759242869468,2.42269627,4127.7,4127.3,0.002]
[1759242869668,2.4,4128.7,4127.3,0.002]
[1759242869831,2.42283277,4127.4,4127.3,0.002]
[1759242870759,2.42275617,4127.6,4127.3,0.002]
[1759242870760,2.4,4130.0,4127.3,0.002]
[1759242870936,0.1208,4127.7,4127.3,0.002]
[1759242871133,3.09228509,4128.4,4127.3,0.002]
[1759242871436,0.1208,4128.0,4127.4,0.1208]
[1759242871632,2.4,4127.9,4127.4,0.1208]
[1759242871836,0.1208,4128.0,4127.4,0.1208]
[1759242872069,2.4220972,4128.7,4127.7,0.1208]
[1759242872370,0.29809526,4130.2,4127.8,0.02422597]
[1759242872535,0.1208,4128.9,4128.3,0.1208]
[1759242872740,2.42207395,4128.7,4128.3,0.1208]
[1759242872969,0.1208,4128.9,4128.3,0.1208]
[1759242872970,2.42214008,4128.6,4128.3,0.1208]
[1759242873138,0.1208,4128.9,4128.3,0.1208]
[1759242873338,2.4,4128.7,4128.3,0.1208]
[1759242873534,4.82201123,4128.8,4128.3,0.1208]
[1759242873734,0.1208,4128.9,4128.3,0.1208]
[1759242874468,0.1208,4129.3,4128.8,0.1208]
[1759242874656,2.54252916,4129.3,4128.8,0.1208]
[1759242874857,2.42177762,4129.2,4128.8,0.1208]
[1759242875082,2.42184662,4129.1,4128.8,0.1208]
[1759242875369,0.1208,4129.3,4128.8,0.1208]
[1759242875565,2.4,4129.2,4128.8,0.1208]
[1759242875747,0.001,4129.8,4128.9,0.02421952]
[1759242875949,0.001,4129.8,4127.9,0.792]
[1759242876165,0.001,4129.8,4129.2,0.1208]
[1759242876166,0.1218,4129.8,4129.2,0.1208]
[1759242876353,0.001,4129.8,4129.3,2.42171054]
[1759242876549,0.001,4129.8,4129.5,2.42158502]
[1759242876771,0.001,4129.8,4129.7,0.1208]
[1759242878467,0.001,4129.8,4129.7,2.5422834]
[1759242878778,0.001,4129.8,4129.7,5.94467151]
[1759242878973,0.001,4129.8,4129.7,5.82387151]
[1759242879178,0.001,4129.8,4129.7,5.94467151]
[1759242881475,0.001,4129.8,4129.7,6.73667151]
[1759242882977,0.001,4129.8,4129.7,3.83067151]
[1759242883181,0.001,4129.8,4129.7,2.905]
[1759242883368,0.001,4129.8,4129.7,2.801]
[1759242883570,0.001,4129.8,4129.7,3.593]
[1759242883755,0.001,4129.8,4129.7,6.0144834]
[1759242883955,0.001,4129.8,4129.7,3.2134834]
[1759242884277,0.001,4129.8,4129.7,2.905]
[1759242884648,0.001,4129.8,4129.7,5.3264834]
[1759242885972,0.001,4129.8,4129.7,6.1184834]
[1759242887051,0.001,4129.8,4129.7,2.4214834]
[1759242887247,0.001,4129.8,4129.7,5.3254834]
[1759242887453,0.001,4129.8,4129.7,6.10019086]
[1759242887946,0.001,4129.8,4129.7,0.77470746]
[1759242888152,0.001,4129.8,4129.7,3.1654834]
[1759242888578,0.001,4129.8,4129.7,2.4214834]
[1759242888777,0.001,4129.8,4129.7,5.34969823]
[1759242888970,0.001,4129.8,4129.7,5.3254834]
[1759242889484,0.001,4129.8,4129.7,6.1174834]
[1759242889688,0.001,4129.8,4129.7,6.97138772]
[1759242890688,0.001,4129.8,4129.7,4.06738772]
[1759242890886,0.001,4129.8,4129.7,6.97138772]
[1759242893088,0.001,4129.8,4129.7,7.09218772]
[1759242893257,0.001,4129.8,4129.7,6.97138772]
[1759242893587,0.001,4129.8,4129.7,7.09218772]
[1759242897499,0.001,4129.8,4129.7,6.97138772]
[1759242897700,0.001,4129.8,4129.7,7.09218772]
[1759242900478,0.001,4129.8,4129.7,9.49218772]
[1759242900880,1e-08,4130.7,4130.3,0.792]
[1759242901105,1e-08,4130.7,4130.6,3.21295579]
[1759242901328,1e-08,4130.7,4130.6,6.11595579]
[1759242901987,1e-08,4130.7,4130.6,6.59282183]
[1759242903118,1e-08,4130.7,4130.4,0.32131903]
[1759242903273,1e-08,4130.7,4130.5,2.902]